[Event "*** Titled Tuesday Blitz"]
[Site "Chess.com"]
[Date "2020.10.27"]
[Round "3"]
[White "MustafayevFarid2004"]
[Black "amintabatabaei"]
[Result "0-1"]
[WhiteElo "2467"]
[BlackElo "2891"]
[TimeControl "180+1"]
[EndTime "10:25:49 PDT"]
[Termination "amintabatabaei won by resignation"]

1. d4 {[%clk 0:03:00.9]} 1... b6 {[%clk 0:03:00.9]} 2. c4 {[%clk 0:02:59.8]}
2... e6 {[%clk 0:03:00.1]} 3. Nf3 {[%clk 0:02:57.4]} 3... Bb7 {[%clk 0:03:00.1]}
4. Nc3 {[%clk 0:02:56.9]} 4... Nf6 {[%clk 0:02:57.4]} 5. Qc2 {[%clk 0:02:52.7]}
5... d5 {[%clk 0:02:56]} 6. cxd5 {[%clk 0:02:51.5]} 6... Nxd5 {[%clk 0:02:56.9]}
7. Bg5 {[%clk 0:02:52.1]} 7... Be7 {[%clk 0:02:56.4]} 8. Nxd5 {[%clk 0:02:50.4]}
8... exd5 {[%clk 0:02:21]} 9. Bxe7 {[%clk 0:02:39.5]} 9... Qxe7 {[%clk
0:02:21.9]} 10. e3 {[%clk 0:02:39.8]} 10... O-O {[%clk 0:02:22.5]} 11. Bd3
{[%clk 0:02:39.5]} 11... g6 {[%clk 0:02:23]} 12. O-O {[%clk 0:02:39.4]} 12... c6
{[%clk 0:02:23.6]} 13. Rac1 {[%clk 0:02:35.7]} 13... Qd6 {[%clk 0:02:23.9]} 14.
Ne5 {[%clk 0:02:21.9]} 14... Nd7 {[%clk 0:02:23.9]} 15. f4 {[%clk 0:02:09.7]}
15... Rac8 {[%clk 0:02:20]} 16. Qa4 {[%clk 0:02:02.6]} 16... a5 {[%clk 0:02:20]}
17. Rc3 {[%clk 0:02:00.1]} 17... Nb8 {[%clk 0:02:16.9]} 18. f5 {[%clk 0:01:56]}
18... f6 {[%clk 0:02:12.8]} 19. Ng4 {[%clk 0:01:14.2]} 19... g5 {[%clk
0:02:01.4]} 20. Rfc1 {[%clk 0:01:14.4]} 20... Rfe8 {[%clk 0:01:59.6]} 21. Bb1
{[%clk 0:01:11.1]} 21... Re7 {[%clk 0:01:58.4]} 22. Nf2 {[%clk 0:01:09]} 22...
Rce8 {[%clk 0:01:57.6]} 23. Qb3 {[%clk 0:01:07.4]} 23... b5 {[%clk 0:01:51.5]}
24. a4 {[%clk 0:01:05.9]} 24... b4 {[%clk 0:01:51.8]} 25. Rc5 {[%clk 0:00:50.4]}
25... Rxe3 {[%clk 0:01:51.6]} 26. Qd1 {[%clk 0:00:51]} 26... Nd7 {[%clk
0:01:45.5]} 27. Rxa5 {[%clk 0:00:49.9]} 27... Qc7 {[%clk 0:01:45.8]} 28. Rb5
{[%clk 0:00:47.5]} 28... Re1+ {[%clk 0:01:44.7]} 29. Qxe1 {[%clk 0:00:43.4]}
29... Rxe1+ {[%clk 0:01:45.6]} 30. Rxe1 {[%clk 0:00:44.3]} 30... cxb5 {[%clk
0:01:46.5]} 0-1

[Event "*** Titled Tuesday Blitz"]
[Site "Chess.com"]
[Date "2020.10.27"]
[Round "3"]
[White "Lion-Al-Messi"]
[Black "HanSchut"]
[Result "1-0"]
[WhiteElo "2516"]
[BlackElo "2236"]
[TimeControl "180+1"]
[EndTime "10:25:52 PDT"]
[Termination "Lion-Al-Messi won by resignation"]

1. e4 {[%clk 0:03:00.9]} 1... c5 {[%clk 0:02:59.5]} 2. Nf3 {[%clk 0:03:01.4]}
2... d6 {[%clk 0:02:59.4]} 3. d4 {[%clk 0:03:02.1]} 3... cxd4 {[%clk 0:03:00.3]}
4. Nxd4 {[%clk 0:03:02.9]} 4... Nf6 {[%clk 0:03:00.8]} 5. Nc3 {[%clk 0:03:03.6]}
5... a6 {[%clk 0:03:01.1]} 6. Bg5 {[%clk 0:03:04]} 6... e6 {[%clk 0:03:00.9]} 7.
Qf3 {[%clk 0:03:03.4]} 7... Nbd7 {[%clk 0:02:58]} 8. Bc4 {[%clk 0:03:03.2]} 8...
Ne5 {[%clk 0:02:55.4]} 9. Qe2 {[%clk 0:03:02.4]} 9... Nxc4 {[%clk 0:02:55]} 10.
Qxc4 {[%clk 0:03:03.3]} 10... b5 {[%clk 0:02:52.2]} 11. Qc6+ {[%clk 0:03:02.1]}
11... Bd7 {[%clk 0:02:52]} 12. Qb7 {[%clk 0:03:01.9]} 12... Be7 {[%clk
0:02:32.6]} 13. Nc6 {[%clk 0:03:01.8]} 13... Qc8 {[%clk 0:01:55.2]} 14. Qxc8+
{[%clk 0:03:01.3]} 14... Rxc8 {[%clk 0:01:56.1]} 15. Nxe7 {[%clk 0:03:02]} 15...
Kxe7 {[%clk 0:01:56.6]} 16. f4 {[%clk 0:03:00]} 16... h6 {[%clk 0:01:41.1]} 17.
Bxf6+ {[%clk 0:02:58.1]} 17... Kxf6 {[%clk 0:01:38.5]} 18. O-O-O {[%clk
0:02:59]} 18... Ke7 {[%clk 0:01:37]} 19. e5 {[%clk 0:02:59.5]} 19... d5 {[%clk
0:01:37]} 20. f5 {[%clk 0:02:59.2]} 20... b4 {[%clk 0:01:31.4]} 21. Ne2 {[%clk
0:02:59.5]} 21... exf5 {[%clk 0:01:26.8]} 22. Rxd5 {[%clk 0:02:58.9]} 22... Be6
{[%clk 0:01:19.8]} 23. Rd6 {[%clk 0:02:59.3]} 23... g5 {[%clk 0:01:12.2]} 24.
Rhd1 {[%clk 0:02:57.6]} 24... f4 {[%clk 0:01:11.8]} 25. Nd4 {[%clk 0:02:57.7]}
25... Rhe8 {[%clk 0:00:53.5]} 26. Nc6+ {[%clk 0:02:55.7]} 26... Kf8 {[%clk
0:00:51.6]} 27. Nxb4 {[%clk 0:02:56.6]} 27... a5 {[%clk 0:00:46.6]} 28. Nd5
{[%clk 0:02:53.2]} 28... Bf5 {[%clk 0:00:43.1]} 29. c3 {[%clk 0:02:50.8]} 29...
Rxe5 {[%clk 0:00:43.1]} 30. Rxh6 {[%clk 0:02:50.8]} 30... Kg7 {[%clk 0:00:42.2]}
31. Rd6 {[%clk 0:02:50.5]} 31... Re2 {[%clk 0:00:36.5]} 32. Rd2 {[%clk
0:02:49.9]} 32... Rce8 {[%clk 0:00:37.1]} 33. Nc7 {[%clk 0:02:43.1]} 33... Re1+
{[%clk 0:00:35.9]} 34. Rd1 {[%clk 0:02:43]} 34... R8e2 {[%clk 0:00:35.2]} 35.
Rd2 {[%clk 0:02:40.9]} 35... Rxd1+ {[%clk 0:00:14.6]} 36. Kxd1 {[%clk
0:02:39.5]} 36... Re3 {[%clk 0:00:15.2]} 37. h3 {[%clk 0:02:38.7]} 37... g4
{[%clk 0:00:14.7]} 38. hxg4 {[%clk 0:02:37.8]} 38... Bxg4+ {[%clk 0:00:14.8]}
39. Kc2 {[%clk 0:02:38.3]} 39... Bf5+ {[%clk 0:00:15.2]} 40. Kb3 {[%clk
0:02:38]} 40... Re7 {[%clk 0:00:12.7]} 41. Nd5 {[%clk 0:02:36.2]} 41... Be6
{[%clk 0:00:12.8]} 42. c4 {[%clk 0:02:36.1]} 42... Rb7+ {[%clk 0:00:13.4]} 43.
Kc3 {[%clk 0:02:36.2]} 43... a4 {[%clk 0:00:13.4]} 44. Nxf4 {[%clk 0:02:35.2]}
1-0

[Event "*** Titled Tuesday Blitz"]
[Site "Chess.com"]
[Date "2020.10.27"]
[Round "3"]
[White "druskacik"]
[Black "Azerichess"]
[Result "0-1"]
[WhiteElo "2616"]
[BlackElo "2987"]
[TimeControl "180+1"]
[EndTime "10:25:58 PDT"]
[Termination "Azerichess won by resignation"]

1. e4 {[%clk 0:01:53.7]} 1... c6 {[%clk 0:02:59.2]} 2. d4 {[%clk 0:01:52.1]}
2... d5 {[%clk 0:02:59.7]} 3. exd5 {[%clk 0:01:53]} 3... cxd5 {[%clk 0:02:59.7]}
4. Bd3 {[%clk 0:01:53.9]} 4... Nc6 {[%clk 0:03:00.2]} 5. c3 {[%clk 0:01:54]}
5... Qc7 {[%clk 0:03:00.7]} 6. Ne2 {[%clk 0:01:53.6]} 6... Bg4 {[%clk
0:03:00.6]} 7. O-O {[%clk 0:01:52.3]} 7... e6 {[%clk 0:02:58.1]} 8. Qe1 {[%clk
0:01:52.7]} 8... Bd6 {[%clk 0:02:53.7]} 9. f3 {[%clk 0:01:52.8]} 9... Bh5 {[%clk
0:02:53.4]} 10. Qh4 {[%clk 0:01:53.2]} 10... Bg6 {[%clk 0:02:52.1]} 11. Bxg6
{[%clk 0:01:53.1]} 11... fxg6 {[%clk 0:02:53]} 12. Bf4 {[%clk 0:01:52.7]} 12...
e5 {[%clk 0:02:49]} 13. dxe5 {[%clk 0:01:49.9]} 13... Nxe5 {[%clk 0:02:49.9]}
14. Nd4 {[%clk 0:01:46.1]} 14... Nf6 {[%clk 0:02:45.9]} 15. Nd2 {[%clk
0:01:38.8]} 15... O-O {[%clk 0:02:43.5]} 16. N2b3 {[%clk 0:01:27.7]} 16... Rae8
{[%clk 0:02:39.4]} 17. Rad1 {[%clk 0:01:22.8]} 17... Nc4 {[%clk 0:02:32.7]} 18.
Bxd6 {[%clk 0:01:21.2]} 18... Qxd6 {[%clk 0:02:33.6]} 19. Rf2 {[%clk 0:01:16.9]}
19... Re7 {[%clk 0:02:22.3]} 20. Qg3 {[%clk 0:01:03.7]} 20... Qa6 {[%clk
0:02:20.4]} 21. a3 {[%clk 0:01:02.5]} 21... Rfe8 {[%clk 0:02:19]} 22. h4 {[%clk
0:01:01.5]} 22... Nh5 {[%clk 0:02:07.5]} 23. Qg5 {[%clk 0:01:01.2]} 23... Re5
{[%clk 0:02:06.5]} 24. Qc1 {[%clk 0:01:00.4]} 24... Qf6 {[%clk 0:02:02.5]} 25.
f4 {[%clk 0:00:50.5]} 25... Re3 {[%clk 0:01:50.3]} 26. f5 {[%clk 0:00:48.5]}
26... Qxh4 {[%clk 0:01:47.5]} 27. Nf3 {[%clk 0:00:42.4]} 27... Qg3 {[%clk
0:01:40.7]} 28. fxg6 {[%clk 0:00:39.3]} 28... hxg6 {[%clk 0:01:41.6]} 29. Nbd2
{[%clk 0:00:34.9]} 29... Nf4 {[%clk 0:01:39.7]} 0-1

[Event "*** Titled Tuesday Blitz"]
[Site "Chess.com"]
[Date "2020.10.27"]
[Round "3"]
[White "Zkid"]
[Black "SamuelGhimpu2003"]
[Result "1-0"]
[WhiteElo "2814"]
[BlackElo "2618"]
[TimeControl "180+1"]
[EndTime "10:26:04 PDT"]
[Termination "Zkid won by resignation"]

1. e4 {[%clk 0:02:59.7]} 1... e6 {[%clk 0:02:58.5]} 2. d4 {[%clk 0:02:59]} 2...
d5 {[%clk 0:02:59.4]} 3. Nc3 {[%clk 0:02:58.6]} 3... Nf6 {[%clk 0:02:59.9]} 4.
Bg5 {[%clk 0:02:57.3]} 4... dxe4 {[%clk 0:03:00.1]} 5. Nxe4 {[%clk 0:02:57.7]}
5... Nbd7 {[%clk 0:03:00.7]} 6. Nf3 {[%clk 0:02:56.7]} 6... h6 {[%clk
0:03:00.7]} 7. Nxf6+ {[%clk 0:02:56.2]} 7... Nxf6 {[%clk 0:03:01.6]} 8. Be3
{[%clk 0:02:56.7]} 8... Bd6 {[%clk 0:02:59.4]} 9. Qd2 {[%clk 0:02:53.2]} 9... b6
{[%clk 0:02:42.9]} 10. Bb5+ {[%clk 0:02:47.1]} 10... Bd7 {[%clk 0:02:35.7]} 11.
Bd3 {[%clk 0:02:46.2]} 11... Bc6 {[%clk 0:02:31.2]} 12. Ne5 {[%clk 0:02:40.1]}
12... Bxe5 {[%clk 0:02:14.9]} 13. dxe5 {[%clk 0:02:41]} 13... Ng4 {[%clk
0:01:58.5]} 14. O-O-O {[%clk 0:02:30.7]} 14... Nxe5 {[%clk 0:01:47.6]} 15. Qc3
{[%clk 0:02:28.8]} 15... Qf6 {[%clk 0:01:22.1]} 16. Bd4 {[%clk 0:02:20.6]} 16...
Nxd3+ {[%clk 0:01:09.6]} 17. Rxd3 {[%clk 0:02:19]} 17... Qg5+ {[%clk 0:00:58.1]}
18. f4 {[%clk 0:02:10.4]} 18... Qxg2 {[%clk 0:00:47.1]} 19. Rg1 {[%clk 0:02:09]}
19... Qe4 {[%clk 0:00:45.7]} 20. Bxg7 {[%clk 0:01:52.4]} 20... Rg8 {[%clk
0:00:44.5]} 21. b3 {[%clk 0:01:44.3]} 21... Bd5 {[%clk 0:00:16.6]} 22. Qxc7
{[%clk 0:01:38.2]} 22... Qb4 {[%clk 0:00:12.8]} 23. Rxd5 {[%clk 0:01:32.4]} 1-0

[Event "*** Titled Tuesday Blitz"]
[Site "Chess.com"]
[Date "2020.10.27"]
[Round "3"]
[White "akanga001"]
[Black "LuisFSiles"]
[Result "0-1"]
[WhiteElo "1891"]
[BlackElo "2290"]
[TimeControl "180+1"]
[EndTime "10:26:07 PDT"]
[Termination "LuisFSiles won by resignation"]

1. d4 {[%clk 0:02:47.2]} 1... Nf6 {[%clk 0:02:58.1]} 2. c4 {[%clk 0:02:45.5]}
2... g6 {[%clk 0:02:56.2]} 3. Nc3 {[%clk 0:02:45.1]} 3... Bg7 {[%clk 0:02:52]}
4. Nf3 {[%clk 0:02:43.2]} 4... O-O {[%clk 0:02:51.3]} 5. e4 {[%clk 0:02:42.3]}
5... d6 {[%clk 0:02:50.9]} 6. Be2 {[%clk 0:02:42.7]} 6... c5 {[%clk 0:02:49.8]}
7. d5 {[%clk 0:02:39.9]} 7... e6 {[%clk 0:02:43]} 8. O-O {[%clk 0:02:39]} 8...
Na6 {[%clk 0:02:41.6]} 9. Bf4 {[%clk 0:02:35.2]} 9... e5 {[%clk 0:02:38]} 10.
Bg5 {[%clk 0:02:33.8]} 10... h6 {[%clk 0:02:37.7]} 11. Bc1 {[%clk 0:02:32.6]}
11... Nh5 {[%clk 0:02:34.3]} 12. g3 {[%clk 0:02:29.9]} 12... Nf6 {[%clk
0:01:59.6]} 13. Re1 {[%clk 0:02:21.5]} 13... Nh7 {[%clk 0:01:52.9]} 14. Bf1
{[%clk 0:02:21.2]} 14... f5 {[%clk 0:01:50.9]} 15. Nd2 {[%clk 0:02:19.6]} 15...
f4 {[%clk 0:01:43.9]} 16. Bg2 {[%clk 0:02:18.8]} 16... Ng5 {[%clk 0:01:34.2]}
17. h4 {[%clk 0:02:18.7]} 17... Nh3+ {[%clk 0:01:32.5]} 18. Bxh3 {[%clk
0:02:12.1]} 18... Bxh3 {[%clk 0:01:33.4]} 19. Kh2 {[%clk 0:01:55.7]} 19... Qd7
{[%clk 0:01:13]} 20. Qe2 {[%clk 0:01:43.2]} 20... f3 {[%clk 0:01:06.9]} 21. Qe3
{[%clk 0:01:33.1]} 21... Bg2 {[%clk 0:01:03.6]} 22. Nxf3 {[%clk 0:00:53.1]}
22... Qh3+ {[%clk 0:00:58.6]} 0-1

[Event "*** Titled Tuesday Blitz"]
[Site "Chess.com"]
[Date "2020.10.27"]
[Round "3"]
[White "larisakalinina"]
[Black "andrzej"]
[Result "0-1"]
[WhiteElo "1949"]
[BlackElo "2300"]
[TimeControl "180+1"]
[EndTime "10:26:26 PDT"]
[Termination "andrzej won on time"]

1. e4 {[%clk 0:03:00.9]} 1... c5 {[%clk 0:02:58.7]} 2. Nf3 {[%clk 0:03:00.5]}
2... e6 {[%clk 0:02:59.2]} 3. d4 {[%clk 0:03:00.6]} 3... cxd4 {[%clk 0:03:00.1]}
4. Nxd4 {[%clk 0:03:00.5]} 4... Nf6 {[%clk 0:03:00.7]} 5. Bd3 {[%clk 0:03:00]}
5... d6 {[%clk 0:02:56.4]} 6. O-O {[%clk 0:02:57.6]} 6... a6 {[%clk 0:02:54.2]}
7. c4 {[%clk 0:02:55.4]} 7... b6 {[%clk 0:02:54]} 8. Nc3 {[%clk 0:02:55.2]} 8...
Bb7 {[%clk 0:02:53.4]} 9. Qe2 {[%clk 0:02:53.1]} 9... Nbd7 {[%clk 0:02:52.1]}
10. f4 {[%clk 0:02:50.2]} 10... g6 {[%clk 0:02:37.7]} 11. Nf3 {[%clk 0:02:43.8]}
11... Bg7 {[%clk 0:02:23.7]} 12. Bd2 {[%clk 0:02:41.5]} 12... O-O {[%clk
0:02:23.1]} 13. Rae1 {[%clk 0:02:39.9]} 13... Qe7 {[%clk 0:02:22.3]} 14. Kh1
{[%clk 0:02:15.1]} 14... Rac8 {[%clk 0:02:21.8]} 15. h3 {[%clk 0:01:54.3]} 15...
Rfe8 {[%clk 0:02:17.5]} 16. g4 {[%clk 0:01:37.7]} 16... Nc5 {[%clk 0:02:12.2]}
17. Bb1 {[%clk 0:01:34.6]} 17... Qc7 {[%clk 0:01:58.4]} 18. g5 {[%clk
0:01:27.2]} 18... Nh5 {[%clk 0:01:56.3]} 19. Qg2 {[%clk 0:01:20.7]} 19... Nd7
{[%clk 0:01:49.3]} 20. b3 {[%clk 0:01:17.3]} 20... b5 {[%clk 0:01:46.6]} 21. Rc1
{[%clk 0:00:31.5]} 21... bxc4 {[%clk 0:01:40.5]} 22. Na4 {[%clk 0:00:29.3]}
22... d5 {[%clk 0:01:39.5]} 23. exd5 {[%clk 0:00:23.6]} 23... exd5 {[%clk
0:01:39.1]} 24. Qg4 {[%clk 0:00:01.4]} 24... c3 {[%clk 0:01:31.6]} 0-1

[Event "*** Titled Tuesday Blitz"]
[Site "Chess.com"]
[Date "2020.10.27"]
[Round "3"]
[White "lelajavakhishvili"]
[Black "Kazmin_Dmitrij"]
[Result "1-0"]
[WhiteElo "2525"]
[BlackElo "2272"]
[TimeControl "180+1"]
[EndTime "10:26:28 PDT"]
[Termination "lelajavakhishvili won by resignation"]

1. d4 {[%clk 0:03:00.9]} 1... f5 {[%clk 0:02:59.6]} 2. Nc3 {[%clk 0:02:58]} 2...
Nf6 {[%clk 0:02:39.3]} 3. Bg5 {[%clk 0:02:55.4]} 3... d5 {[%clk 0:02:37.3]} 4.
Bxf6 {[%clk 0:02:53.7]} 4... exf6 {[%clk 0:02:27.4]} 5. e3 {[%clk 0:02:54.6]}
5... Be6 {[%clk 0:02:23.1]} 6. Bd3 {[%clk 0:02:53.9]} 6... Bd6 {[%clk
0:02:17.7]} 7. Qf3 {[%clk 0:02:52.1]} 7... c6 {[%clk 0:01:40.6]} 8. Bxf5 {[%clk
0:02:47.1]} 8... Bxf5 {[%clk 0:01:39.7]} 9. Qxf5 {[%clk 0:02:47.2]} 9... O-O
{[%clk 0:01:39.5]} 10. Nge2 {[%clk 0:02:44.9]} 10... g6 {[%clk 0:01:25.1]} 11.
Qd3 {[%clk 0:02:43.5]} 11... b5 {[%clk 0:01:18.3]} 12. h4 {[%clk 0:02:39]} 12...
b4 {[%clk 0:01:15.1]} 13. Nb1 {[%clk 0:02:34.2]} 13... f5 {[%clk 0:01:13.1]} 14.
Nd2 {[%clk 0:02:32.8]} 14... Nd7 {[%clk 0:01:06.8]} 15. h5 {[%clk 0:02:31.1]}
15... Nf6 {[%clk 0:01:03.1]} 16. hxg6 {[%clk 0:02:29.9]} 16... hxg6 {[%clk
0:01:02.9]} 17. O-O-O {[%clk 0:02:29.7]} 17... Kg7 {[%clk 0:01:01.8]} 18. f3
{[%clk 0:02:27.7]} 18... Qa5 {[%clk 0:00:53.5]} 19. Kb1 {[%clk 0:02:26.2]} 19...
Rae8 {[%clk 0:00:46]} 20. Nb3 {[%clk 0:02:14.1]} 20... Qc7 {[%clk 0:00:44.1]}
21. Rde1 {[%clk 0:02:03.6]} 21... Qe7 {[%clk 0:00:41.9]} 22. Nec1 {[%clk
0:02:00.6]} 22... Bg3 {[%clk 0:00:41.1]} 23. Re2 {[%clk 0:01:59.9]} 23... Rh8
{[%clk 0:00:36.5]} 24. Rd1 {[%clk 0:01:58.5]} 24... Rh2 {[%clk 0:00:34.2]} 25.
Qa6 {[%clk 0:01:57.5]} 25... Qc7 {[%clk 0:00:31.1]} 26. Nd3 {[%clk 0:01:56.1]}
26... Nd7 {[%clk 0:00:18.9]} 27. Nxb4 {[%clk 0:01:52.3]} 27... Nb6 {[%clk
0:00:15.1]} 28. Nc5 {[%clk 0:01:46.5]} 28... Bf4 {[%clk 0:00:11.1]} 29. exf4
{[%clk 0:01:38.1]} 29... Rxe2 {[%clk 0:00:10.2]} 30. Qxe2 {[%clk 0:01:38.7]} 1-0

[Event "*** Titled Tuesday Blitz"]
[Site "Chess.com"]
[Date "2020.10.27"]
[Round "3"]
[White "TheMagnet"]
[Black "Lady_Nika"]
[Result "0-1"]
[WhiteElo "2573"]
[BlackElo "2420"]
[TimeControl "180+1"]
[EndTime "10:26:29 PDT"]
[Termination "Lady_Nika won by checkmate"]

1. d4 {[%clk 0:03:00.9]} 1... d5 {[%clk 0:02:59.3]} 2. c4 {[%clk 0:03:00.9]}
2... e6 {[%clk 0:02:59.1]} 3. Nc3 {[%clk 0:03:00.7]} 3... f5 {[%clk 0:02:58.7]}
4. Nf3 {[%clk 0:02:52.2]} 4... Nf6 {[%clk 0:02:58.7]} 5. e3 {[%clk 0:02:52.5]}
5... c6 {[%clk 0:02:58.9]} 6. Bd3 {[%clk 0:02:51.9]} 6... Bd6 {[%clk 0:02:59.1]}
7. O-O {[%clk 0:02:51.8]} 7... O-O {[%clk 0:02:59.1]} 8. b3 {[%clk 0:02:52.4]}
8... Ne4 {[%clk 0:02:59.2]} 9. Ne2 {[%clk 0:02:52.9]} 9... Rf6 {[%clk
0:02:58.6]} 10. Bb2 {[%clk 0:02:52.5]} 10... Rh6 {[%clk 0:02:58.8]} 11. Ne5
{[%clk 0:02:50.2]} 11... Qh4 {[%clk 0:02:58.2]} 12. h3 {[%clk 0:02:44.2]} 12...
Nd7 {[%clk 0:02:57.5]} 13. f3 {[%clk 0:02:37.6]} 13... Ng3 {[%clk 0:02:50.2]}
14. Nxg3 {[%clk 0:02:35.5]} 14... Qxg3 {[%clk 0:02:48.8]} 15. Qe1 {[%clk
0:02:35.6]} 15... Qg5 {[%clk 0:02:41.1]} 16. f4 {[%clk 0:02:25]} 16... Qe7
{[%clk 0:02:40.4]} 17. Rc1 {[%clk 0:02:18.3]} 17... Nxe5 {[%clk 0:02:40.4]} 18.
fxe5 {[%clk 0:02:15.4]} 18... Bb4 {[%clk 0:02:40.4]} 19. Bc3 {[%clk 0:02:11.3]}
19... Bxc3 {[%clk 0:02:40.2]} 20. Rxc3 {[%clk 0:02:11.6]} 20... Bd7 {[%clk
0:02:37.7]} 21. cxd5 {[%clk 0:02:08.8]} 21... cxd5 {[%clk 0:02:32.3]} 22. Rc7
{[%clk 0:02:06.3]} 22... Rb8 {[%clk 0:02:28.1]} 23. Bb5 {[%clk 0:02:00.6]} 23...
Rd8 {[%clk 0:02:28.1]} 24. Rxb7 {[%clk 0:01:59.5]} 24... Rg6 {[%clk 0:02:20.9]}
25. Rf2 {[%clk 0:01:52]} 25... Qe8 {[%clk 0:02:16.5]} 26. Rxd7 {[%clk 0:01:43]}
26... Rxd7 {[%clk 0:02:16.3]} 27. Rc2 {[%clk 0:01:42.1]} 27... Qd8 {[%clk
0:02:10]} 28. Bxd7 {[%clk 0:01:36.6]} 28... Qxd7 {[%clk 0:02:09.9]} 29. Qa5
{[%clk 0:01:31.3]} 29... h5 {[%clk 0:02:09.1]} 30. Rc7 {[%clk 0:01:25.7]} 30...
Qe8 {[%clk 0:02:08.5]} 31. Qc5 {[%clk 0:01:18]} 31... Kh7 {[%clk 0:02:07.2]} 32.
Rxa7 {[%clk 0:01:16.7]} 32... Rg3 {[%clk 0:02:03.1]} 33. Kh2 {[%clk 0:01:01.2]}
33... Qg6 {[%clk 0:01:59]} 34. Qc2 {[%clk 0:01:01]} 34... Rxe3 {[%clk
0:01:58.6]} 35. Qf2 {[%clk 0:01:00.4]} 35... Re4 {[%clk 0:01:54.8]} 36. Re7
{[%clk 0:00:55.7]} 36... f4 {[%clk 0:01:52.8]} 37. a4 {[%clk 0:00:53.4]} 37...
Re3 {[%clk 0:01:51.5]} 38. h4 {[%clk 0:00:47]} 38... f3 {[%clk 0:01:50.3]} 39.
gxf3 {[%clk 0:00:43.2]} 39... Rc3 {[%clk 0:01:49.2]} 40. Qf1 {[%clk 0:00:29.1]}
40... Rc2+ {[%clk 0:01:46.9]} 41. Kh1 {[%clk 0:00:29.6]} 41... Qg3 {[%clk
0:01:45.6]} 42. Rxe6 {[%clk 0:00:24.1]} 42... Qh2# {[%clk 0:01:44.4]} 0-1

[Event "*** Titled Tuesday Blitz"]
[Site "Chess.com"]
[Date "2020.10.27"]
[Round "3"]
[White "bascheyaro"]
[Black "Mostii"]
[Result "1-0"]
[WhiteElo "2728"]
[BlackElo "2444"]
[TimeControl "180+1"]
[EndTime "10:26:30 PDT"]
[Termination "bascheyaro won by resignation"]

1. d4 {[%clk 0:03:00.9]} 1... e6 {[%clk 0:03:00.9]} 2. Nf3 {[%clk 0:03:00.7]}
2... Nf6 {[%clk 0:03:00.3]} 3. Bg5 {[%clk 0:03:00.8]} 3... Be7 {[%clk
0:02:59.6]} 4. e3 {[%clk 0:03:00.8]} 4... b6 {[%clk 0:02:59.6]} 5. Bd3 {[%clk
0:03:01]} 5... Bb7 {[%clk 0:03:00.1]} 6. O-O {[%clk 0:03:01.2]} 6... Ne4 {[%clk
0:02:59.4]} 7. Bxe7 {[%clk 0:03:00.2]} 7... Qxe7 {[%clk 0:03:00.3]} 8. Nbd2
{[%clk 0:03:00.5]} 8... Nxd2 {[%clk 0:03:00]} 9. Nxd2 {[%clk 0:03:00.1]} 9...
O-O {[%clk 0:03:00]} 10. f4 {[%clk 0:03:00.3]} 10... f5 {[%clk 0:02:59]} 11. e4
{[%clk 0:02:58.8]} 11... fxe4 {[%clk 0:02:58.8]} 12. Nxe4 {[%clk 0:02:58.9]}
12... Nc6 {[%clk 0:02:48.7]} 13. c3 {[%clk 0:02:58.4]} 13... Nd8 {[%clk
0:02:48.3]} 14. Qh5 {[%clk 0:02:57.5]} 14... g6 {[%clk 0:02:46.8]} 15. Qh3
{[%clk 0:02:50.3]} 15... Nf7 {[%clk 0:02:46.9]} 16. Rae1 {[%clk 0:02:43.2]}
16... Nd6 {[%clk 0:02:46.8]} 17. Ng5 {[%clk 0:02:39.4]} 17... Rf6 {[%clk
0:02:47.1]} 18. c4 {[%clk 0:02:23.5]} 18... Raf8 {[%clk 0:02:46.4]} 19. g3
{[%clk 0:02:23.7]} 19... Nf5 {[%clk 0:02:37.1]} 20. Bxf5 {[%clk 0:02:18.1]}
20... Rxf5 {[%clk 0:02:37.4]} 21. a3 {[%clk 0:02:17.3]} 21... h5 {[%clk
0:01:36.8]} 22. Qh4 {[%clk 0:02:02.5]} 22... Qd6 {[%clk 0:01:26.3]} 23. Rd1
{[%clk 0:02:01.8]} 23... Qc6 {[%clk 0:01:24.4]} 24. Rd2 {[%clk 0:01:34.9]} 24...
Rxg5 {[%clk 0:00:46.7]} 25. Qxg5 {[%clk 0:01:33.3]} 25... Qh1+ {[%clk
0:00:46.2]} 26. Kf2 {[%clk 0:01:33.6]} 26... Qg2+ {[%clk 0:00:46.7]} 27. Ke1
{[%clk 0:01:33.7]} 27... Qe4+ {[%clk 0:00:46.6]} 28. Re2 {[%clk 0:01:33.8]}
28... Qb1+ {[%clk 0:00:28.5]} 29. Kf2 {[%clk 0:01:33.3]} 29... Qd3 {[%clk
0:00:28.8]} 30. Qe5 {[%clk 0:01:28]} 30... Bf3 {[%clk 0:00:19.7]} 31. Re3 {[%clk
0:01:24.4]} 1-0

[Event "*** Titled Tuesday Blitz"]
[Site "Chess.com"]
[Date "2020.10.27"]
[Round "3"]
[White "Gulkov_Igor"]
[Black "Keures"]
[Result "1-0"]
[WhiteElo "2463"]
[BlackElo "2230"]
[TimeControl "180+1"]
[EndTime "10:26:33 PDT"]
[Termination "Gulkov_Igor won by resignation"]

1. Nf3 {[%clk 0:03:00.9]} 1... Nf6 {[%clk 0:02:59.7]} 2. c4 {[%clk 0:03:00.2]}
2... e6 {[%clk 0:02:58.4]} 3. Nc3 {[%clk 0:03:00.1]} 3... d5 {[%clk 0:02:58.3]}
4. d4 {[%clk 0:02:59.9]} 4... Be7 {[%clk 0:02:58.2]} 5. Bg5 {[%clk 0:02:59.6]}
5... Ne4 {[%clk 0:02:57.6]} 6. Bxe7 {[%clk 0:02:58.8]} 6... Qxe7 {[%clk
0:02:54]} 7. e3 {[%clk 0:02:58.6]} 7... f5 {[%clk 0:02:53.1]} 8. Rc1 {[%clk
0:02:53.5]} 8... c6 {[%clk 0:02:53]} 9. Bd3 {[%clk 0:02:53.5]} 9... Nd7 {[%clk
0:02:52.1]} 10. O-O {[%clk 0:02:53.1]} 10... O-O {[%clk 0:02:52.2]} 11. Qc2
{[%clk 0:02:52.3]} 11... Qf6 {[%clk 0:02:49.7]} 12. Ne2 {[%clk 0:02:50.7]} 12...
g5 {[%clk 0:02:47]} 13. Ne1 {[%clk 0:02:45]} 13... g4 {[%clk 0:02:45.2]} 14. f3
{[%clk 0:02:41]} 14... gxf3 {[%clk 0:02:45.6]} 15. gxf3 {[%clk 0:02:38.8]} 15...
Ng5 {[%clk 0:02:28.6]} 16. cxd5 {[%clk 0:02:06.3]} 16... exd5 {[%clk 0:02:01.7]}
17. Nf4 {[%clk 0:02:05.9]} 17... Kh8 {[%clk 0:01:57.5]} 18. Kh1 {[%clk
0:02:02.9]} 18... Re8 {[%clk 0:01:47.5]} 19. Qf2 {[%clk 0:02:00.8]} 19... Nf8
{[%clk 0:01:45.9]} 20. Neg2 {[%clk 0:01:59.2]} 20... Ng6 {[%clk 0:01:41.9]} 21.
Rce1 {[%clk 0:01:53.6]} 21... Bd7 {[%clk 0:01:41]} 22. Rg1 {[%clk 0:01:48.2]}
22... Re7 {[%clk 0:01:32.9]} 23. Nxg6+ {[%clk 0:01:47.6]} 23... hxg6 {[%clk
0:01:24.7]} 24. Nf4 {[%clk 0:01:37]} 24... Rh7 {[%clk 0:01:04.9]} 25. Qg3 {[%clk
0:01:34.5]} 25... Kg7 {[%clk 0:00:17.1]} 26. Qxg5 {[%clk 0:01:29.6]} 26... Qxg5
{[%clk 0:00:16.9]} 27. Rxg5 {[%clk 0:01:28.6]} 27... Be8 {[%clk 0:00:16.8]} 28.
Reg1 {[%clk 0:01:22.2]} 28... Bf7 {[%clk 0:00:15]} 29. Nxg6 {[%clk 0:01:19.9]}
1-0